Cogmind - Beta 16.1 @@@ ROGUE MODE // 2026.04.11 @ 19:39:48 // Winter2019/RPGLIKE Player: Toaster Result: Destroyed by Y0-XEM(R) with Subdweller Beam Cannon Performance ------------- Evolutions (0) 0 Regions Visited (2) 400 Robots Destroyed (23) 115 Value Destroyed (576) 576 Prototype IDs (2) 40 Alien Tech Used (0) 0 Bonus (0) 0 TOTAL SCORE: 1131 Bonus ------- None Cogmind --------- Core Integrity 0/600 Matter 300/300 Energy 95/100 System Corruption 0% Temperature Cool (9) Movement Core (50) Location -10/Subcaves Parts ------- > --- POWER (1) -------- (None) > --- PROPULSION (2) --- (None) > --- UTILITY (2) ------ (None) > --- WEAPON (2) ------- Hammer Hammer > --- INVENTORY (1) ---- (None) Peak State ------------ > --- POWER ------------ Ion Engine > --- PROPULSION ------- Wheel Wheel > --- UTILITY ---------- Heat Sink Machine Analyzer > --- WEAPON ----------- Small Laser Small Laser > --- INVENTORY -------- (None) [Rating: 9] Favorites ----------- Power Ion Engine Engine Ion Engine Propulsion Wheel Wheel Wheel Utility Light Armor Plating Device Heat Sink Processor Machine Analyzer Protection Light Armor Plating Weapon Hammer Energy Gun Small Laser Impact Weapon Hammer Build | -11 -10 -10 ------- Run | Yrd Mat Sub Slots Evolved 3 | 3 . . Power . | . . . Propulsion 1 | 1 . . Utility 1 | 1 . . Weapon 1 | 1 . . Parts Attached 11 | 5 6 . Power 1 | 1 . . Engine 1 | 1 . . Core . | . . . Reactor . | . . . Propulsion 2 | 2 . . Treads . | . . . Leg . | . . . Wheel 2 | 2 . . Hover . | . . . Flight . | . . . Utility 4 | . 4 . Device 1 | . 1 . Storage . | . . . Processor 1 | . 1 . Hackware . | . . . Protection 2 | . 2 . Artifact . | . . . Weapon 4 | 2 2 . Energy Gun 2 | 2 . . Energy Cannon . | . . . Ballistic Gun . | . . . Ballistic Cannon . | . . . Launcher . | . . . Special Weapon . | . . . Impact Weapon 2 | . 2 . Slashing Weapon . | . . . Piercing Weapon . | . . . Special Melee Weapon . | . . . Unidentified Prototypes . | . . . Parts Lost 5 | . . 5 Power 1 | . . 1 Propulsion 2 | . . 2 Utility 2 | . . 2 Weapon . | . . . Highest Loss Streak 5 | . . 5 To Critical Strikes . | . . . Average Backups . | . . . Power . | . . . Propulsion . | . . . Utility . | . . . Weapon . | . . . Tool/Special . | . . . Unused Backups . | . . . Power . | . . . Propulsion . | . . . Utility . | . . . Weapon . | . . . Tool/Special . | . . . Average Slot Usage (%) 92 | . 93 81 Engine 13 | . 14 12 Wheel 27 | . 28 20 Device 1 | . 1 . Processor 1 | . 1 . Protection 19 | . 19 19 Energy Gun 7 | . 8 . Impact Weapon 20 | . 19 28 Peak Build Rating 9 | 5 9 7 Average Rating 6 | 3 6 5 On Entrance 4 | . 5 7 Avg Prop Armor Cover (%) . | . . . Naked Turns . | . . . Heaviest Build 15 | 7 15 15 Greatest Support 25 | 25 25 25 Greatest Overweight (x) 1 | . . 1 Average Overweight (x) . | . . . Largest Inventory Capacity 1 | 1 1 1 Average Capacity 1 | 1 1 1 Most Carried 1 | . 1 . Average Carried . | . . . Final Capacity 1 | 1 1 1 Final Carried . | . . . Class Distribution -------------------- 71% | Gladiator 28% | Mutant Dominant Class ---------------- Gladiator | -10/Materials Gladiator | -10/Subcaves Resources | -11 -10 -10 ----------- Run | Yrd Mat Sub Matter Collected 320 | 231 89 . Remotely . | . . . Salvage Created 597 | . 597 . Parts 40 | . 40 . Haulers Intercepted . | . . . Recyclers Shooed . | . . . Parts Field Recycled . | . . . Retrieved Matter . | . . . Parts Self-Destructed 6 | . . 6 Prevented . | . . . Parts Restored . | . . . Kills | -11 -10 -10 ------- Run | Yrd Mat Sub Combat Hostiles Destroyed 19 | . 19 . Melee 6 | . 6 . Guns 11 | . 11 . Classes Destroyed 4 | . 4 . Mechanic 1 | . 1 . Watcher 3 | . 3 . Swarmer 6 | . 6 . Grunt 13 | . 13 . Best Kill Streak 3 | . 3 . Combat Bots Only 3 | . 3 . Max Kills in Single Turn 2 | . 2 . Gunslinging 1 | . 1 . Exploded . | . . . Melee 1 | . 1 . Uniques/NPCs Destroyed . | . . . Combat | -11 -10 -10 -------- Run | Yrd Mat Sub Hostile Shots Fired 125 | . 92 33 Missed 32 | . 27 5 Hits 93 | . 65 28 Projectile 93 | . 65 28 Critical Strikes 1 | . 1 . Damage Taken 1403 | . 702 701 Core 1024 | . 474 550 Absorbed by Shields . | . . . Redirected to Core 774 | . 374 400 Core Remaining (%) 100 | 100 . . Volleys Fired 28 | . 28 . Largest 2 | . 2 . Hottest 80 | . 80 . Shots Fired 56 | . 56 . Gun 56 | . 56 . Cannon . | . . . Launcher . | . . . Special . | . . . Kinetic . | . . . Thermal 56 | . 56 . Explosive . | . . . Electromagnetic . | . . . Robot Hit Streak 7 | . 7 . Robot Miss Streak 4 | . 4 . Penetration Max . | . . . Secondary Targets 4 | . 4 . Max Gunslinging Chain 1 | . 1 . Shots Hit Robots 75 | . 63 12 Core Hits 24 | . 23 1 Critical Kills 1 | . 1 . Critical Parts Destroyed 5 | . 5 . Critical Strikes 7 | . 6 1 Smash 7 | . 6 1 Melee Attacks 56 | . 40 16 Impact 56 | . 40 16 Slashing . | . . . Piercing . | . . . Sneak Attacks 1 | . 1 . Combat Hostiles 1 | . 1 . Follow-up Attacks 12 | . 9 3 Damage Inflicted 1448 | . 1140 308 Guns 341 | . 341 . Cannons . | . . . Explosions . | . . . Melee 1107 | . 799 308 Ramming . | . . . Kinetic . | . . . Thermal 341 | . 341 . Explosive . | . . . Electromagnetic . | . . . Impact 1107 | . 799 308 Slashing . | . . . Piercing . | . . . Highest Corruption . | . . . Average Corruption . | . . . Corruption Purged . | . . . Corruption Blocked . | . . . Overload Shots . | . . . Overflow Damage 155 | . 127 28 Projectiles . | . . . Explosions . | . . . Melee 155 | . 127 28 Knockbacks 7 | . 4 3 Impact 7 | . 4 3 Kinetic . | . . . Secondary . | . . . Self-Inflicted Damage . | . . . Shots . | . . . Rammed . | . . . Targets Rammed . | . . . Kicked . | . . . Crushed . | . . . Highest Temperature 186 | . 186 . Average Temperature 60 | . 60 . Received Heat Transfer 546 | . 321 225 Siege Activations . | . . . Martial Activations . | . . . Shielding Activations . | . . . Robots Disrupted . | . . . Combat Hostiles . | . . . Robots Corrupted 5 | . 5 . Combat Hostiles 2 | . 2 . Parts Fried 4 | . 4 . Impact Corruptions 11 | . 10 1 Robots Melted . | . . . Combat Hostiles . | . . . Parts Melted . | . . . Heat Transferred 775 | . 775 . Parts Sabotaged . | . . . Parts Stolen . | . . . Parts Stripped . | . . . Power Chain Reactions . | . . . Alert | -11 -10 -10 ------- Run | Yrd Mat Sub Maximum Alert Level . | . . . Low Security (%) 100 | 100 100 . Level 1 . | . . . Level 2 . | . . . Level 3 . | . . . Level 4 . | . . . Level 5 . | . . . High Security . | . . . Max Security . | . . . Peak Influence 193 | . 193 . Initial . | . . . Average 125 | . 130 . Influence Increases 562 | . 562 . Destroy 0b10 Robot/C 380 | . 380 . Destroy 0b10 Robot/NC 20 | . 20 . Destroy Leader 76 | . 76 . Successful Hack 26 | . 26 . Select Force Hacks 30 | . 30 . Lose Combat Pursuer 30 | . 30 . Influence Decreases 562 | . 404 158 Entered New Map 77 | . . 77 Time Decay 444 | . 404 40 Lost Part 41 | . . 41 Squads Dispatched 4 | . 4 . Investigation 4 | . 4 . Extermination . | . . . Reinforcement . | . . . Assault . | . . . Garrison . | . . . Intercept . | . . . Searches Triggered . | . . . Construction Impeded . | . . . Haulers Reinforced . | . . . Active Scanning Responses . | . . . Cargo Convoy Interrupts . | . . . Stealth | -11 -10 -10 --------- Run | Yrd Mat Sub Distress Signals 2 | . 2 . Communications Jammed . | . . . Distress Signals . | . . . Times Spotted 33 | . 31 2 Peak Tracking Total 4 | . 4 2 Tactical Retreats 3 | . 2 1 Traps | -11 -10 -10 ------- Run | Yrd Mat Sub Traps Triggered 2 | . 2 . Indirectly . | . . . Trap Hack Attempts . | . . . Triggered . | . . . Disarmed . | . . . Reprogrammed . | . . . Reused . | . . . Traps Extracted . | . . . Installed . | . . . Triggered . | . . . Machines | -11 -10 -10 ---------- Run | Yrd Mat Sub Machines Disabled . | . . . Max in Single Turn . | . . . Machines Repaired . | . . . Machines Dismantled . | . . . Machines Sabotaged . | . . . Overloaded Fab Kills . | . . . Hacking | -11 -10 -10 --------- Run | Yrd Mat Sub Machines Accessed 8 | . 8 . Terminals 7 | . 7 . Fabricators . | . . . Repair Stations . | . . . Recycling Units 1 | . 1 . Scanalyzers . | . . . Garrison Access . | . . . Total Hacks 18 | . 18 . Successful 13 | . 13 . Failed 5 | . 5 . Catastrophic 1 | . 1 . Database Lockouts . | . . . Manual 10 | . 10 . Terminals 16 | . 16 . Fabricators . | . . . Repair Stations . | . . . Recycling Units 2 | . 2 . Scanalyzers . | . . . Garrison Access . | . . . Terminal Hacks 4 | . 4 . Prototype ID Bank 1 | . 1 . Locate Traps 2 | . 2 . Hauler Manifests 1 | . 1 . Fabricator Hacks . | . . . Repair Station Hacks . | . . . Recycling Unit Hacks 1 | . 1 . Report Inventory 1 | . 1 . Scanalyzer . | . . . Garrison Access Hacks . | . . . Unauthorized Hacks 8 | . 8 . Terminals 7 | . 7 . Botnet 6 | . 6 . Sabotage 1 | . 1 . Fabricators . | . . . Repair Stations . | . . . Recycling Units 1 | . 1 . Tunnel 1 | . 1 . Scanalyzers . | . . . Garrison Access . | . . . Data Cores Recovered . | . . . Used . | . . . Hacking Detections 4 | . 4 . Full Trace Events 1 | . 1 . Feedback Events . | . . . Feedback Blocked . | . . . Robot Schematics Acquired . | . . . Robots Built . | . . . Authchips . | . . . Time . | . . . Total Robot Build Rating . | . . . Part Schematics Acquired . | . . . Parts Built . | . . . Authchips . | . . . Time . | . . . Total Part Build Rating . | . . . Part Studies Acquired . | . . . Parts Repaired . | . . . Time . | . . . Parts Recycled . | . . . Recycled Matter . | . . . Retrieved Matter . | . . . Retrieved Components . | . . . Parts Scanalyzed . | . . . Part Schematics Acquired . | . . . Parts Damaged . | . . . Bothacking | -11 -10 -10 ------------ Run | Yrd Mat Sub Used RIF Installer . | . . . Robots Hacked . | . . . Non-combat . | . . . Combat . | . . . Robot Hacks Applied . | . . . Relay Couplers Released . | . . . Fabnet Peak Effective % . | . . . Robots Rewired . | . . . Allies Hacked . | . . . Hacks Repelled . | . . . Allies | -11 -10 -10 -------- Run | Yrd Mat Sub Total Allies . | . . . Largest Group . | . . . Highest-Rated Group . | . . . Highest-Rated Ally . | . . . Total Orders . | . . . Ally Attacks . | . . . Total Damage . | . . . Kills . | . . . Allies Corrupted . | . . . Allies Melted . | . . . Intel | -11 -10 -10 ------- Run | Yrd Mat Sub Active Infowar (turns) 83 | . 83 . Machine Analysis 83 | . 83 . Robot Analysis Total . | . . . Derelict Logs Recovered 1 | . . 1 Drone Launches . | . . . Drone Recoveries . | . . . Exploration | -11 -10 -10 ------------- Run | Yrd Mat Sub Turns Passed 1100 | 40 963 97 Spaces Moved 840 | 41 731 68 Core 10 | 1 . 9 Treads . | . . . Legs . | . . . Wheels 830 | 40 731 59 Hover . | . . . Flight . | . . . Fastest Speed 50 | 50 80 80 Average Speed 80 | 79 80 82 Slowest Speed 100 | 80 80 100 Overloaded Moves . | . . . Propulsion Burnouts . | . . . Robots Hopped . | . . . Potential Cave-ins . | . . . Cave-ins Triggered . | . . . Exploration Rate (%) 33 | 3 93 5 Regions Visited 2 Branch Regions 1 Pre-discovered Areas 1 | . 1 . Known Exits Taken . | . . . Unknown Exits Taken 2 | 1 1 . Scrap Searched . | . . . Spaces Dug . | . . . Terrain Destroyed . | . . . Melee . | . . . Projectile . | . . . AOE . | . . . Terrain Rammed . | . . . Walls Destroyed . | . . . Machines Disabled . | . . . Actions | -11 -10 -10 --------- Run | Yrd Mat Sub Total 1127 | 45 994 88 Wait 181 | . 173 8 Move 838 | 40 730 68 Hop . | . . . Pick Up . | . . . Fast Attach 12 | 5 7 . Attach . | . . . Detach 2 | . 2 . Swap . | . . . Drop 3 | . 3 . Fire 28 | . 28 . Melee 43 | . 31 12 Ram . | . . . Kick . | . . . Crush . | . . . Escape Stasis . | . . . Rewire . | . . . Trap . | . . . Miscellaneous 20 | . 20 . Route ------- -11/Scrapyard -10/Materials (discovered 5 exits: [*Mat x2] / [*Min x2] / [*Sub]) -10/Subcaves History --------- Turn | Location | Event 1 | -11/Scrapyard | Upgraded with Propulsion slot (x1) 1 | -11/Scrapyard | Upgraded with Utility slot (x1) 1 | -11/Scrapyard | Upgraded with Weapon slot (x1) 22 | -11/Scrapyard | Discovered new exit (range 15) 41 | -11/Scrapyard | Entered Materials 275 | -10/Materials | Discovered new exit (range 11) 312 | -10/Materials | Build established: Mutant 390 | -10/Materials | Discovered new exit (range 16) 510 | -10/Materials | Reached level 2 626 | -10/Materials | Discovered new exit (range 15) 628 | -10/Materials | Build established: Gladiator 818 | -10/Materials | Discovered new exit (range 13) 998 | -10/Materials | Discovered new exit (range 7) 1004 | -10/Materials | Entered Subcaves 1005 | -10/Subcaves | Approached by a straggling Scientist 1006 | -10/Subcaves | Reached level 3 1009 | -10/Subcaves | Learned 2 Materials zone layouts 1072 | -10/Subcaves | Core integrity fell below 50% 1092 | -10/Subcaves | Core integrity fell below 20% 1101 | -10/Subcaves | Destroyed by Y0-XEM(R) with Subdweller Beam Cannon Last Messages --------------- 01006_ Reached level 3. 01008_ MY-CG0(c): "Hey, let me tag along and I can get us both out of this nasty situation. At least I think I can... The group I got separated from was talking about a shortcut back to the UFD." 01009_ Acquired derelict log, extracted data. Data stored: Materials zone layouts (x2). 01058_ Lgt. Armor Plating destroyed. 01064_ Upgraded: Melee Accuracy (+10) 01065_ 1I-SSY(R) knocked back. 01065_ Hammer follow-up attack on Y0-XEM(R). 01065_ Y0-XEM(R) knocked back. 01071_ Hammer follow-up attack on 1I-SSY(R). 01071_ Wheel destroyed. 01081_ 1I-SSY(R) suffers critical hit (Smash). 01086_ Hammer follow-up attack on 1I-SSY(R). 01086_ Destroyed Sub. Laser. 01086_ 1I-SSY(R) system corrupted by crushing effect. 01087_ Lgt. Armor Plating destroyed. 01099_ Ion Engine destroyed. 01100_ Y0-XEM(R) knocked back. Map ----- +----------------------------------------------------+ | ????????????????????????????????????????????????? | | ????????????????????????????????????????????????? | | ????????????????????????????????????????????????? | | ????????????????????????????????????????????????? | | ????????????????????????????????????????????????? | | ????????????????????????????????????????????????? | | ???????????????????????????? ???????????????????? | | ??????????????????????????? ???????????????????? | | ?????????????????????????? ????????????????????? | | ????????????????????????? #????????????????????? | | ????????????????????????# #####????????????????? | | ???????????????????????? #???????????????? | | ??????????????????????? #??????????????? | | ??????????????????????# #?????????????? | | ????????????????????## #?????????????? | | ?????????????????### #? #?????????????? | | ?????????????????# #?? ??????????????? | | ?????????????????# #?????# #??????????????? | | ?????????????????# ###???## ##?????????????? | | ?????????????????# #???## ??????????????? | | ????????????????## #??## ???????????????? | | ???????????????## #??# ?????????????????? | | ???????????????# #??# #??????????????????? | | ???????????????# ##?## #???????????????????? | | ??????????????## ### ####????????????????? | | ??????????????# R @ #????????????????? | | ??????????????#### ##???????????????? | | ?????????????????## ;#???????????????? | | ??????????????????## # ;##???????????????? | | ??????????????????# c ###????????????????? | | ??????????????????# # #??????????????????? | | ??????????????????## # ##??????????????????? | | ??????????????????## # #???????????????????? | | ???????????????#### ## #??????????????????? | | ?????????????### # # #??????????????????? | | ?????????????# ## #??????????????????? | | ?????????????#" # ### #??????????????????? | | ??????????? ?# ## #??????????????????? | | ????????? "##??# ??????????????????? | | ??????????????? #?????????????????? | | ??????????????## #?????????????????? | | ??????????????? ### #####??????????????????? | | ??????????????## ??? ##??????????????????????? | | ???????????????# ??? #???????????????????????? | | ???????????????# ???# #???????????????????????? | | ??????????????? ?????###???????????????????????? | | ??????????????? ???????????????????????????????? | | ??????????????## ???????????????????????????????? | | ????????????????????????????????????????????????? | | ????????????????????????????????????????????????? | +----------------------------------------------------+ Best States ------------- Heat Dissipation 35 Energy Generation 10 Energy Capacity 250 Matter Stores 300 Matter Capacity 300 Sight Range 16 Terrain Scan Density 10 Armor Coverage 300 Evasion (%) 44 Offensive Hacking 10 Item Schematics ----------------- None Robot Schematics ------------------ None Fabricated ------------ Nothing Repaired ---------- Nothing Studied --------- None Alien Tech Used ----------------- None Achievements -------------- None Challenges ------------ None RPGLIKE | -11 -10 -10 --------- Run | Yrd Mat Sub Levels Raised 2 | . 1 1 XP Earned 6460 | 3000 2460 1000 XP Spent 2950 | 1850 600 500 Upgrades 9 | 5 2 2 Propulsion Slot 1 | 1 . . Utility Slot 1 | 1 . . Weapon Slot 1 | 1 . . Mass Support 1 | 1 . . Inventory Capacity 1 | 1 . . Melee Accuracy 2 | . . 2 Hack Attack % 2 | . 2 . Protomatter Created 169 | . 169 . Integrity Restored 423 | . 423 . Core 423 | . 423 . Protomatter Decayed . | . . . Game ------ Seed AntigravModifiedHumpback Manual? 0 Play Time 00:12:11 Cumulative 189.5 hours Start 2026.04.11 @ 19:28:36 End 2026.04.11 @ 19:39:48 Sessions 1 Manual Loads 0 Difficulty Rogue Special Mode Winter2019/RPGLIKE Game No. 86 Rogue 82 Adventurer 4 Explorer 0 Win Type - Total 6 Types 4/0/2/0/0/0/0/0/0/0 Lore% 72 Gallery% 50 Achievement% 42 Wizard Run 0 Options --------- Layout 0 ASCII 0 Keyboard 0 Movement Arrows Keybinds 0 Fullscreen 2 Font 32/SmallcapsGlow Map View 88x55 Zoom Use 0% Tactical HUD 1 Map Filters NONE Filters NONE Steam 1 RUN: 1b1cb474-0b47-4d9c-bab9-639efb6f77a7